[Event "Chinese League Division-A 2024"]
[Site "Fuling Chongqing"]
[Date "2024.06.29"]
[Round "4.19"]
[White "Song, Yuxin"]
[Black "Xiao, Yiyi"]
[Result "1/2-1/2"]
[ECO "B12"]
[WhiteElo "2383"]
[BlackElo "2338"]
[Annotator "RC"]
[PlyCount "66"]
[EventDate "2024.06.28"]
[EventType "team-tourn"]
[EventCountry "CHN"]
[SourceTitle "playchess.com"]
[Source "ChessBase"]
[SourceQuality "1"]
[TimeControl "40/5400+30:1800+30"]

1. e4 {[%emt 0:00:04]} c6 {[%emt 0:00:12]} 2. d4 {[%emt 0:00:33]} d5 {[%emt 0:00:06]} 3. e5 {[%emt 0:00:13]} Bf5 {[%emt 0:00:18]} 4. Nc3 {[%emt 0:00:22]} e6 {[%emt 0:06:03]} 5. g4 {[%emt 0:03:34]} Bg6 {[%emt 0:00:09]} 6. Nge2 {[%emt 0:00:47]} c5 {[%emt 0:02:01]} 7. h4 {[%emt 0:01:35]} h5 {[%emt 0:00:38]} 8. Nf4 {[%emt 0:00:43]} Bh7 {[%emt 0:00:11]} 9. Nxh5 {[%emt 0:00:12]} Nc6 {[%emt 0:07:17]} 10. dxc5 {[%emt 0:01:31]} Bxc5 {[%emt 0:03:26]} 11. Bg5 {[%emt 0:07:07]} Qb6 {[%emt 0:03:10]} 12. Qd2 {[%emt 0:00:25]} Qxb2 {[%emt 0:14:27]} 13. Rb1 {[%emt 0:00:20]} Qxc2 {[%emt 0:00:22]} 14. Qxc2 {[%emt 0:01:06]} Bxc2 {[%emt 0:00:09]} 15. Rc1 {[%emt 0:10:52]} d4 {[%emt 0:08:24]} 16. Nd5 {[%emt 0:09:10]} exd5 {[%emt 0:02:29]} 17. Rxc2 {[%emt 0:00:06]} Bb4+ {[%emt 0:00:57]} 18. Kd1 {[%emt 0:02:14]} Nxe5 {[%emt 0:06:23]} 19. Nxg7+ {[%emt 0:03:28]} Kf8 {[%emt 0:00:28]} 20. Nf5 {[%emt 0:00:31]} d3 {[%emt 0:07:02]} 21. Rb2 {[%emt 0:00:29]} Bc3 {[%emt 0:00:30]} 22. Rxb7 {[%emt 0:02:09]} Nxg4 {[%emt 0:00:45]} 23. Bxd3 {[%emt 0:01:31]} Nxf2+ {[%emt 0:04:00]} 24. Kc2 {[%emt 0:00:09]} Nxh1 {[%emt 0:03:41]} 25. Kxc3 {[%emt 0:00:17]} Nf2 {[%emt 0:00:21]} 26. Bf4 {[%emt 0:01:09]} Ne4+ {[%emt 0:03:51]} 27. Bxe4 {[%emt 0:00:26]} dxe4 {[%emt 0:00:10]} 28. Bd6+ {[%emt 0:00:34]} Ke8 {[%emt 0:00:10]} 29. Bc5 {[%emt 0:00:15]} Nf6 {[%emt 0:02:12]} 30. Nd6+ {[%emt 0:00:18]} Kd8 {[%emt 0:00:14]} 31. Nxf7+ {[%emt 0:01:51]} Kc8 {[%emt 0:00:09]} 32. Nd6+ {[%emt 0:00:12]} Kd8 {[%emt 0:00:06]} 33. Nf7+ {[%emt 0:01:11]} Kc8 {[%emt 0:00:14]} 1/2-1/2

[Event "Chinese League Division-A 2024"]
[Site "Fuling Chongqing"]
[Date "2024.06.29"]
[Round "4.20"]
[White "Zhou, Shumeng"]
[Black "Li, Xueyi"]
[Result "0-1"]
[ECO "B12"]
[WhiteElo "2173"]
[BlackElo "2209"]
[Annotator "RC"]
[PlyCount "84"]
[EventDate "2024.06.28"]
[EventType "team-tourn"]
[EventCountry "CHN"]
[SourceTitle "playchess.com"]
[Source "ChessBase"]
[SourceQuality "1"]
[TimeControl "40/5400+30:1800+30"]

1. e4 {[%emt 0:00:02]} c6 {[%emt 0:00:04]} 2. d4 {[%emt 0:00:04]} d5 {[%emt 0:00:03]} 3. e5 {[%emt 0:00:13]} Bf5 {[%emt 0:00:05]} 4. h4 {[%emt 0:00:19]} h5 {[%emt 0:00:07]} 5. Bd3 {[%emt 0:00:04]} Bxd3 {[%emt 0:00:05]} 6. Qxd3 {[%emt 0:00:04]} Qa5+ {[%emt 0:00:17]} 7. c3 {[%emt 0:00:21]} Qa6 {[%emt 0:00:45]} 8. Qf3 {[%emt 0:00:20]} e6 {[%emt 0:01:04]} 9. b4 {[%emt 0:01:18]} Ne7 {[%emt 0:05:08]} 10. Ne2 {[%emt 0:05:04]} Nf5 {[%emt 0:02:18]} 11. g3 {[%emt 0:10:26]} Nd7 {[%emt 0:09:21]} 12. O-O {[%emt 0:04:03]} g6 {[%emt 0:07:39]} 13. Nf4 {[%emt 0:03:29]} Bg7 {[%emt 0:01:42]} 14. a4 {[%emt 0:03:38]} b6 {[%emt 0:03:09]} 15. Nd2 {[%emt 0:15:40]} c5 {[%emt 0:09:32]} 16. b5 {[%emt 0:06:15]} Qc8 {[%emt 0:00:43]} 17. Nb3 {[%emt 0:03:02]} a6 {[%emt 0:01:43]} 18. Bb2 {[%emt 0:03:58]} O-O {[%emt 0:01:56]} 19. Rfc1 {[%emt 0:02:35]} axb5 {[%emt 0:04:41]} 20. axb5 {[%emt 0:00:03]} Rxa1 {[%emt 0:00:25]} 21. Bxa1 {[%emt 0:05:27]} Qa8 {[%emt 0:00:39]} 22. Rb1 {[%emt 0:04:03]} Bh6 {[%emt 0:10:51]} 23. dxc5 {[%emt 0:09:06]} Nxe5 {[%emt 0:08:00]} 24. Qe2 {[%emt 0:00:24]} Bxf4 {[%emt 0:00:05]} 25. gxf4 {[%emt 0:00:09]} Nc4 {[%emt 0:00:05]} 26. cxb6 {[%emt 0:09:33]} Qb8 {[%emt 0:02:35]} 27. Nc5 {[%emt 0:01:51]} Qxf4 {[%emt 0:04:37]} 28. Nd3 {[%emt 0:02:26]} Qb8 {[%emt 0:02:09]} 29. Bb2 {[%emt 0:01:34]} Nxb2 {[%emt 0:09:55]} 30. Rxb2 {[%emt 0:00:28]} Qxb6 {[%emt 0:00:03]} 31. Ne5 {[%emt 0:01:35]} Ra8 {[%emt 0:00:54]} 32. Rb4 {[%emt 0:02:57]} Ra1+ {[%emt 0:04:52]} 33. Kg2 {[%emt 0:00:16]} Qb7 {[%emt 0:00:42]} 34. Nc6 {[%emt 0:04:07]} d4 {[%emt 0:06:03]} 35. cxd4 {[%emt 0:00:10]} Nxh4+ {[%emt 0:00:07]} 36. Kg3 {[%emt 0:00:30]} Nf5+ {[%emt 0:00:33]} 37. Kg2 {[%emt 0:00:10]} Nh4+ {[%emt 0:01:20]} 38. Kg3 {[%emt 0:00:01]} g5 {[%emt 0:01:11]} 39. Kh2 {[%emt 0:03:15]} Qc7+ {[%emt 0:00:20]} 40. Ne5 {[%emt 0:00:00]} Qc1 {[%emt 0:00:00]} 41. Qe4 {[%emt 0:01:37]} Qg1+ {[%emt 0:00:33]} 42. Kh3 {[%emt 0:00:02]} Ra3+ {[%emt 0:00:31]} 0-1

[Event "Chinese League Division-A 2024"]
[Site "Fuling Chongqing"]
[Date "2024.06.29"]
[Round "4.21"]
[White "Wan, Yunguo"]
[Black "Xu, Yinglun"]
[Result "1/2-1/2"]
[ECO "C11"]
[WhiteElo "2498"]
[BlackElo "2526"]
[Annotator "TA"]
[PlyCount "79"]
[EventDate "2024.06.28"]
[EventType "team-tourn"]
[EventCountry "CHN"]
[SourceTitle "playchess.com"]
[Source "ChessBase"]
[SourceQuality "1"]
[TimeControl "40/5400+30:1800+30"]

{[%evp 20,79,3,12,8,14,14,10,10,0,0,0,25,31,26,31,43,23,28,0,0,0,0,0,0,0,8,14,16,11,10,14,17,0,0,0,0,0,0,0,0,0,0,0,0,0,0,0,0,0,0,0,0,0,0,0,0,0,0,0,0,0]} 1. e4 {[%emt 0:00:07]} e6 {[%emt 0:00:16]} 2. d4 {[%emt 0:00:58]} d5 {[%emt 0:00:07]} 3. Nc3 {[%emt 0:00:20]} Nf6 {[%emt 0:00:09]} 4. e5 {[%emt 0:00:32]} Nfd7 {[%emt 0:00:07]} 5. f4 {[%emt 0:00:06]} c5 {[%emt 0:00:07]} 6. Nf3 {[%emt 0:00:09]} Nc6 {[%emt 0:00:06]} 7. Be3 {[%emt 0:00:07]} cxd4 {[%emt 0:01:37]} 8. Nxd4 {[%emt 0:00:07]} Qb6 {[%emt 0:00:06]} 9. Qd2 {[%emt 0:06:02]} Qxb2 {[%emt 0:00:51]} 10. Rb1 {[%emt 0:00:08][%cal Ba1b1,Bb1b3,Bb3b7,Bb7c7][%mdl 32]} Qa3 {[%emt 0:00:04]} 11. Bb5 {[%emt 0:00:49]} Nxd4 {[%emt 0:00:08]} 12. Bxd4 {[%emt 0:00:09]} a6 {[%emt 0:00:10]} 13. Bxd7+ {[%emt 0:01:11]} Bxd7 {[%emt 0:00:07]} 14. Rb3 {[%emt 0:00:06]} Qe7 {[%emt 0:00:06]} ({Not} 14... Qa5 $2 15. Bb6 $18 (15. Rxb7 Bb4 $17) (15. Rxb7 Bb4 $17)) 15. Rxb7 {[%emt 0:00:04]} Qd8 {[%emt 0:01:39]} 16. Bb6 {[%emt 0:06:33]} Qc8 {[%emt 0:00:11]} 17. Rc7 {[%emt 0:02:25]} Qd8 {[%emt 0:00:05]} 18. Qd4 {[%emt 0:11:20][%cal Of4f5] Wards off Bc5} Ba3 {[%emt 0:00:48]} 19. Ra7 {[%emt 0:05:07]} Qc8 {[%emt 0:02:00] The position is equal.} 20. Rxa8 {[%emt 0:02:59]} (20. Rc7 $5 Qd8 $8 21. f5 $11) 20... Qxa8 {[%emt 0:00:07]} 21. Bc5 {[%emt 0:00:09]} Bxc5 {[%emt 0:04:37]} 22. Qxc5 {[%emt 0:00:06]} Qc6 {[%emt 0:03:43] Black is weak on the dark squares} 23. Qxc6 {[%emt 0:05:05]} Bxc6 $11 {[%emt 0:00:05][%mdl 4096] Endgame. KRB-KRN} 24. Kd2 {[%emt 0:00:49]} Kd7 {[%emt 0:02:29]} 25. Rb1 {[%emt 0:01:00]} f6 {[%emt 0:07:35]} 26. Rb6 {[%emt 0:10:35]} fxe5 {[%emt 0:02:05]} 27. fxe5 {[%emt 0:00:05][%cal Oc3e2] Strongly threatening Ne2!} Rf8 {[%emt 0:00:06]} 28. Rxa6 {[%emt 0:04:47]} Rf2+ {[%emt 0:01:00]} 29. Ke3 {[%emt 0:00:50]} Rxg2 {[%emt 0:04:16][%cal Od7c7]} 30. Ra7+ {[%emt 0:00:51]} Kc8 {[%emt 0:00:30][%cal Og2g4]} 31. Ne2 {[%emt 0:06:18]} Rxh2 {[%emt 0:01:09]} 32. Rxg7 {[%emt 0:00:47]} Rh4 {[%emt 0:00:15]} 33. Nd4 {[%emt 0:03:01]} Bd7 {[%emt 0:01:35]} 34. Kd3 {[%emt 0:06:34]} Rh3+ {[%emt 0:01:37]} 35. Kd2 {[%emt 0:00:08]} Rh5 {[%emt 0:00:21]} 36. a4 {[%emt 0:12:41]} Bxa4 {[%emt 0:07:14]} 37. Nxe6 {[%emt 0:00:10] [#] And now Rg8+ would win.} Rxe5 {[%emt 0:00:24]} 38. Rg8+ {[%emt 0:02:17]} Be8 $1 {[%emt 0:00:06]} 39. Rxe8+ {[%emt 0:00:13]} Kd7 {[%emt 0:00:05]} 40. Rh8 {[%emt 0:00:00] Weighted Error Value: White=0.02 (flawless) /Black=0.02 (flawless) .  Inaccurate:     	White=1     	---        OK:         	White=17    	Black=17     Best:        	White=2     	Black=1      Strong:       	---       	Black=1} 1/2-1/2

[Event "Chinese League Division-A 2024"]
[Site "Fuling Chongqing"]
[Date "2024.06.29"]
[Round "4.22"]
[White "Xie, Kaifan"]
[Black "Nie, Xinyang"]
[Result "1-0"]
[ECO "E35"]
[WhiteElo "2376"]
[BlackElo "2395"]
[Annotator "RC"]
[PlyCount "147"]
[EventDate "2024.06.28"]
[EventType "team-tourn"]
[EventCountry "CHN"]
[SourceTitle "playchess.com"]
[Source "ChessBase"]
[SourceQuality "1"]
[TimeControl "40/5400+30:1800+30"]

1. d4 {[%emt 0:00:03]} Nf6 {[%emt 0:00:05]} 2. c4 {[%emt 0:00:14]} e6 {[%emt 0:00:04]} 3. Nc3 {[%emt 0:00:22]} Bb4 {[%emt 0:00:04]} 4. Qc2 {[%emt 0:00:07]} d5 {[%emt 0:00:03]} 5. cxd5 {[%emt 0:02:11]} exd5 {[%emt 0:00:05]} 6. Bf4 {[%emt 0:04:32]} O-O {[%emt 0:03:18]} 7. e3 {[%emt 0:01:29]} Nh5 {[%emt 0:00:41]} 8. Be5 {[%emt 0:12:13]} Nc6 {[%emt 0:00:07]} 9. Be2 {[%emt 0:02:54]} Nf6 {[%emt 0:00:05]} 10. Bf4 {[%emt 0:06:38]} Ne4 {[%emt 0:05:45]} 11. Bd3 {[%emt 0:02:59]} Re8 {[%emt 0:04:09]} 12. Nge2 {[%emt 0:01:21]} Bf5 {[%emt 0:01:09]} 13. O-O {[%emt 0:02:49]} Nxc3 {[%emt 0:02:10]} 14. bxc3 {[%emt 0:00:36]} Bxd3 {[%emt 0:00:04]} 15. Qxd3 {[%emt 0:00:05]} Bf8 {[%emt 0:01:17]} 16. Qb5 {[%emt 0:06:43]} Rb8 {[%emt 0:01:25]} 17. c4 {[%emt 0:02:30]} dxc4 {[%emt 0:03:51]} 18. Rfc1 {[%emt 0:03:10]} a6 {[%emt 0:02:34]} 19. Qxc4 {[%emt 0:00:31]} Bd6 {[%emt 0:00:02]} 20. Rab1 {[%emt 0:02:00]} Qd7 {[%emt 0:00:18]} 21. h3 {[%emt 0:02:42]} h6 {[%emt 0:01:24]} 22. Bxd6 {[%emt 0:02:33]} cxd6 {[%emt 0:00:51]} 23. Nc3 {[%emt 0:04:49]} Rec8 {[%emt 0:05:16]} 24. Qa4 {[%emt 0:02:14]} Qf5 {[%emt 0:01:39]} 25. Qa3 {[%emt 0:02:51]} Rd8 {[%emt 0:10:42]} 26. Rb6 {[%emt 0:04:22]} Rd7 {[%emt 0:01:01]} 27. Rcb1 {[%emt 0:04:21]} Rc8 {[%emt 0:03:36]} 28. Rxb7 {[%emt 0:03:53]} Rxb7 {[%emt 0:00:06]} 29. Rxb7 {[%emt 0:00:01]} Na5 {[%emt 0:01:45]} 30. e4 {[%emt 0:03:14]} Qg5 {[%emt 0:06:52]} 31. Rb1 {[%emt 0:00:16]} Kh7 {[%emt 0:01:03]} 32. Nd5 {[%emt 0:07:30]} Qd2 {[%emt 0:00:04]} 33. Qf3 {[%emt 0:00:50]} Rf8 {[%emt 0:06:34]} 34. Qf5+ {[%emt 0:03:42]} Kh8 {[%emt 0:00:04]} 35. Ne7 {[%emt 0:02:42]} Qxa2 {[%emt 0:12:04]} 36. Ng6+ {[%emt 0:00:11]} Kg8 {[%emt 0:00:05]} 37. Ne7+ {[%emt 0:00:02]} Kh8 {[%emt 0:00:05]} 38. e5 {[%emt 0:00:40]} Rd8 {[%emt 0:01:32]} 39. d5 {[%emt 0:01:37]} dxe5 {[%emt 0:01:07]} 40. Rb6 {[%emt 0:00:00]} Qd2 {[%emt 0:00:00]} 41. Rxa6 {[%emt 0:16:17]} Nc4 {[%emt 0:08:18]} 42. Qxf7 {[%emt 0:06:06]} Qc1+ {[%emt 0:01:14]} 43. Kh2 {[%emt 0:00:04]} Qf4+ {[%emt 0:00:03]} 44. Qxf4 {[%emt 0:00:06]} exf4 {[%emt 0:00:03]} 45. Ng6+ {[%emt 0:00:34]} Kg8 {[%emt 0:00:05]} 46. Nxf4 {[%emt 0:00:08]} Rf8 {[%emt 0:00:38]} 47. Kg3 {[%emt 0:02:39]} Nd2 {[%emt 0:00:08]} 48. f3 {[%emt 0:05:11]} Nf1+ {[%emt 0:00:34]} 49. Kf2 {[%emt 0:00:01]} Rxf4 {[%emt 0:00:10]} 50. Kxf1 {[%emt 0:00:08]} Rd4 {[%emt 0:00:04]} 51. d6 {[%emt 0:03:02]} Kf7 {[%emt 0:03:29]} 52. Ra7+ {[%emt 0:01:26]} Kf6 {[%emt 0:00:08]} 53. Rd7 {[%emt 0:01:47]} h5 {[%emt 0:01:03]} 54. Rd8 {[%emt 0:02:06]} h4 {[%emt 0:03:28]} 55. d7 {[%emt 0:03:15]} Kg6 {[%emt 0:00:56]} 56. Rh8 {[%emt 0:00:27]} Rxd7 {[%emt 0:00:06]} 57. Rxh4 {[%emt 0:00:02]} Rd2 {[%emt 0:02:13]} 58. Rg4+ {[%emt 0:00:06]} Kf6 {[%emt 0:00:16]} 59. Kg1 {[%emt 0:00:06]} g6 {[%emt 0:07:30]} 60. Kh2 {[%emt 0:00:06]} Kg7 {[%emt 0:00:20]} 61. Rb4 {[%emt 0:00:13]} Ra2 {[%emt 0:00:06]} 62. Rb5 {[%emt 0:00:22]} Ra4 {[%emt 0:00:31]} 63. Kg3 {[%emt 0:00:04]} Ra2 {[%emt 0:02:25]} 64. h4 {[%emt 0:00:08]} Kh6 {[%emt 0:00:07]} 65. Kh3 {[%emt 0:00:04]} Rc2 {[%emt 0:01:09]} 66. g3 {[%emt 0:00:09]} Rc8 {[%emt 0:00:50]} 67. Kg4 {[%emt 0:00:11]} Rg8 {[%emt 0:00:32]} 68. Rb6 {[%emt 0:00:13]} Kh7 {[%emt 0:01:33]} 69. Kg5 {[%emt 0:00:10]} Rg7 {[%emt 0:00:04]} 70. f4 {[%emt 0:00:23]} Rg8 {[%emt 0:00:05]} 71. g4 {[%emt 0:00:05]} Rg7 {[%emt 0:00:05]} 72. Rc6 {[%emt 0:00:03]} Rg8 {[%emt 0:00:37]} 73. Rc7+ {[%emt 0:00:02]} Kh8 {[%emt 0:00:05]} 74. Kh6 {[%emt 0:00:16]} 1-0

[Event "Chinese League Division-A 2024"]
[Site "Fuling Chongqing"]
[Date "2024.06.29"]
[Round "4.23"]
[White "Cao, Qingfeng"]
[Black "Wu, Yixing"]
[Result "1-0"]
[ECO "E11"]
[WhiteElo "2189"]
[BlackElo "2326"]
[Annotator "RC"]
[PlyCount "109"]
[EventDate "2024.06.28"]
[EventType "team-tourn"]
[EventCountry "CHN"]
[SourceTitle "playchess.com"]
[Source "ChessBase"]
[SourceQuality "1"]
[TimeControl "40/5400+30:1800+30"]

1. d4 {[%emt 0:00:03]} Nf6 {[%emt 0:00:04]} 2. c4 {[%emt 0:00:07]} e6 {[%emt 0:00:02]} 3. Nf3 {[%emt 0:00:07]} d5 {[%emt 0:00:05]} 4. g3 {[%emt 0:00:07]} Bb4+ {[%emt 0:00:04]} 5. Bd2 {[%emt 0:00:45]} Be7 {[%emt 0:00:05]} 6. Bg2 {[%emt 0:00:52]} O-O {[%emt 0:00:07]} 7. O-O {[%emt 0:00:10]} c6 {[%emt 0:00:04]} 8. Bc3 {[%emt 0:01:19]} dxc4 {[%emt 0:00:17]} 9. a4 {[%emt 0:02:16]} b5 {[%emt 0:00:18]} 10. axb5 {[%emt 0:02:07]} cxb5 {[%emt 0:00:04]} 11. Ne5 {[%emt 0:01:15]} Nd5 {[%emt 0:00:05]} 12. Ba5 {[%emt 0:00:38]} Qe8 {[%emt 0:00:04]} 13. b3 {[%emt 0:00:30]} Nc6 {[%emt 0:00:31]} 14. bxc4 {[%emt 0:00:49]} bxc4 {[%emt 0:00:11]} 15. e4 {[%emt 0:01:19]} Nxa5 {[%emt 0:00:22]} 16. exd5 {[%emt 0:00:35]} Bb4 {[%emt 0:00:19]} 17. Na3 {[%emt 0:00:46]} f6 {[%emt 0:47:08]} 18. Nc6 {[%emt 0:09:18]} Nxc6 {[%emt 0:01:40]} 19. dxc6 {[%emt 0:00:06]} a5 {[%emt 0:02:45]} 20. Nxc4 {[%emt 0:03:33]} Ba6 {[%emt 0:00:33]} 21. Qc2 {[%emt 0:00:29]} Bb5 {[%emt 0:04:01]} 22. Rfc1 {[%emt 0:00:51]} Bxc6 {[%emt 0:12:21]} 23. Nd6 {[%emt 0:04:28]} Qe7 {[%emt 0:00:21]} 24. Bxc6 {[%emt 0:02:30]} Qxd6 {[%emt 0:00:08]} 25. Bxa8 {[%emt 0:00:07]} Rxa8 {[%emt 0:00:03]} 26. Qe4 {[%emt 0:07:41]} Qd5 {[%emt 0:01:54]} 27. Qxd5 {[%emt 0:04:09]} exd5 {[%emt 0:00:02]} 28. Rc7 {[%emt 0:00:32]} a4 {[%emt 0:03:11]} 29. Rac1 {[%emt 0:01:03]} a3 {[%emt 0:05:56]} 30. Rc8+ {[%emt 0:01:44]} Rxc8 {[%emt 0:00:04]} 31. Rxc8+ {[%emt 0:00:05]} Kf7 {[%emt 0:00:03]} 32. Rc6 {[%emt 0:11:44]} h5 {[%emt 0:06:28]} 33. h3 {[%emt 0:01:30]} Kg6 {[%emt 0:04:02]} 34. Kg2 {[%emt 0:00:31]} h4 {[%emt 0:09:56]} 35. Kf3 {[%emt 0:08:19]} Kg5 {[%emt 0:01:52]} 36. Ra6 {[%emt 0:00:53]} hxg3 {[%emt 0:01:43]} 37. fxg3 {[%emt 0:00:05]} Kf5 {[%emt 0:00:54]} 38. Ra7 {[%emt 0:16:12]} Bc3 {[%emt 0:00:24]} 39. g4+ {[%emt 0:00:13]} Kg6 {[%emt 0:01:11]} 40. Rxa3 {[%emt 0:00:00]} Bxd4 {[%emt 0:00:00]} 41. Rd3 {[%emt 0:06:45]} Bb2 {[%emt 0:04:08]} 42. Rxd5 {[%emt 0:00:08]} Bc1 {[%emt 0:01:02]} 43. h4 {[%emt 0:02:54]} Ba3 {[%emt 0:11:14]} 44. Ke4 {[%emt 0:08:25]} Bc1 {[%emt 0:02:47]} 45. Rd7 {[%emt 0:01:37]} Bb2 {[%emt 0:01:10]} 46. Rd5 {[%emt 0:03:08]} Bc1 {[%emt 0:00:20]} 47. Rh5 {[%emt 0:00:18]} Bd2 {[%emt 0:06:22]} 48. Kd5 {[%emt 0:02:46]} Kf7 {[%emt 0:00:10]} 49. Rh8 {[%emt 0:00:58]} Bc1 {[%emt 0:07:39]} 50. h5 {[%emt 0:01:07]} f5 {[%emt 0:00:43]} 51. gxf5 {[%emt 0:00:08]} Kf6 {[%emt 0:00:01]} 52. Ke4 {[%emt 0:00:32]} Bd2 {[%emt 0:01:01]} 53. Rd8 {[%emt 0:01:10]} Bh6 {[%emt 0:00:06]} 54. Rd6+ {[%emt 0:01:20]} Kg5 {[%emt 0:00:12]} 55. Rg6+ {[%emt 0:00:15]} 1-0

[Event "Chinese League Division-A 2024"]
[Site "Fuling Chongqing"]
[Date "2024.06.29"]
[Round "4.24"]
[White "Chen, Yining"]
[Black "Sun, Fanghui"]
[Result "0-1"]
[ECO "D94"]
[WhiteElo "2300"]
[BlackElo "2115"]
[Annotator "RC"]
[PlyCount "56"]
[EventDate "2024.06.28"]
[EventType "team-tourn"]
[EventCountry "CHN"]
[SourceTitle "playchess.com"]
[Source "ChessBase"]
[SourceQuality "1"]
[TimeControl "40/5400+30:1800+30"]

1. d4 {[%emt 0:00:05]} d5 {[%emt 0:00:11]} 2. c4 {[%emt 0:00:06]} c6 {[%emt 0:00:03]} 3. Nc3 {[%emt 0:00:17]} Nf6 {[%emt 0:00:13]} 4. e3 {[%emt 0:00:22]} g6 {[%emt 0:01:07]} 5. Nf3 {[%emt 0:00:10]} Bg7 {[%emt 0:00:21]} 6. Be2 {[%emt 0:00:19]} O-O {[%emt 0:00:56]} 7. O-O {[%emt 0:00:22]} dxc4 {[%emt 0:03:30]} 8. Bxc4 {[%emt 0:00:10]} Bg4 {[%emt 0:00:45]} 9. Be2 {[%emt 0:02:27]} Nbd7 {[%emt 0:00:17]} 10. e4 {[%emt 0:00:20]} Bxf3 {[%emt 0:00:50]} 11. Bxf3 {[%emt 0:00:04]} e5 {[%emt 0:00:06]} 12. d5 {[%emt 0:00:12]} cxd5 {[%emt 0:01:42]} 13. exd5 {[%emt 0:00:06]} Re8 {[%emt 0:00:07]} 14. Bg5 {[%emt 0:00:17]} h6 {[%emt 0:19:32]} 15. Be3 {[%emt 0:00:19]} e4 {[%emt 0:11:55]} 16. Be2 {[%emt 0:00:16]} a6 {[%emt 0:00:09]} 17. a4 {[%emt 0:18:28]} Qa5 {[%emt 0:08:22]} 18. Qd2 {[%emt 0:05:13]} Kh7 {[%emt 0:00:25]} 19. Rfd1 {[%emt 0:01:36]} Rad8 {[%emt 0:03:44]} 20. d6 {[%emt 0:06:09]} Qf5 {[%emt 0:03:59]} 21. Nd5 {[%emt 0:11:08]} Ng4 {[%emt 0:12:15]} 22. Ne7 {[%emt 0:08:13]} Qe6 {[%emt 0:01:20]} 23. Bxg4 {[%emt 0:07:18]} Qxg4 {[%emt 0:00:06]} 24. Qd5 {[%emt 0:04:42]} Ne5 {[%emt 0:05:13]} 25. h3 {[%emt 0:02:56]} Qe6 {[%emt 0:03:47]} 26. Qxe4 {[%emt 0:17:53]} Rxd6 {[%emt 0:01:13]} 27. Rxd6 {[%emt 0:00:09]} Qxd6 {[%emt 0:00:04]} 28. Nd5 {[%emt 0:09:53]} f5 {[%emt 0:00:25]} 0-1